lending/lending_fUSD_20240603
["ID","MTS","AMOUNT","RATE_DAILY","PERIOD"]
[328460140,1717417836447,-500.0,0.00031396,4]
[328460141,1717417836456,-500.0,0.00031396,4]
[328460142,1717417836465,-500.0,0.00031396,4]
[328460143,1717417836474,-500.0,0.00031396,4]
[328460144,1717417836484,-513.64947006,0.00031396,4]
[328460145,1717417836493,-515.62779695,0.00031396,4]
[328460146,1717417836503,-500.0,0.00031396,4]
[328460147,1717417836512,-500.0,0.00031396,4]
[328460148,1717417836521,-500.0,0.00031396,4]
[328460149,1717417836530,-500.0,0.00031396,4]
[328460150,1717417836539,-500.0,0.00031396,4]
[328460151,1717417836549,-500.0,0.00031396,4]
[328460152,1717417836558,-500.0,0.00031396,4]
[328460153,1717417836567,-500.0,0.00031396,4]
[328460154,1717417836577,-500.0,0.00031396,4]
[328460155,1717417836586,-500.0,0.00031396,4]
[328460156,1717417836596,-500.0,0.00031396,4]
[328460157,1717417836605,-500.0,0.00031396,4]
[328460158,1717417836615,-564.9,0.00031396,4]
[328460159,1717417836624,-500.0,0.00031396,4]
[328460160,1717417836633,-500.0,0.00031396,4]
[328460161,1717417836642,-500.0,0.00031396,4]
[328460162,1717417836651,-500.0,0.00031396,4]
[328460163,1717417836660,-733.0,0.00031396,4]
[328460164,1717417836670,-514.82338152,0.00031396,4]
[328460165,1717417836680,-513.32019041,0.00031396,4]
[328460166,1717417836689,-500.0,0.00031396,4]
[328460167,1717417836698,-509.45676241,0.00031396,4]
[328460168,1717417836708,-500.0,0.00031396,4]
[328460169,1717417836717,-500.0,0.00031396,4]
[328460170,1717417836727,-500.0,0.00031396,4]
[328460171,1717417836737,-349.49677744,0.00031396,4]
[328460172,1717417836746,-513.53174784,0.00031396,4]
[328460173,1717417836757,-500.0,0.00031396,4]
[328460174,1717417836765,-500.0,0.00031396,4]
[328460175,1717417836775,-500.0,0.00031396,4]
[328460176,1717417836784,-500.0,0.00031396,4]
[328460177,1717417836793,-514.85146359,0.00031396,4]
[328460178,1717417836802,-500.0,0.00031396,4]
[328460179,1717417836812,-500.0,0.00031396,4]
[328460180,1717417836821,-518.33069907,0.00031396,4]
[328460181,1717417836830,-515.27820811,0.00031396,4]
[328460182,1717417836839,-500.0,0.00031396,4]
[328460183,1717417836849,-500.0,0.00031396,4]
[328460184,1717417836858,-500.0,0.00031396,4]
[328460185,1717417836867,-500.0,0.00031396,4]
[328460186,1717417836877,-670.9,0.00031396,4]
[328460187,1717417836886,-500.0,0.00031396,4]
[328460188,1717417836896,-500.0,0.00031396,4]
[328460189,1717417836906,-562.69,0.00031396,4]
[328460190,1717417836920,-514.24064848,0.00031396,4]
[328460191,1717417836929,-500.0,0.00031396,4]
[328460192,1717417836938,-500.0,0.00031396,4]
[328460193,1717417836948,-500.0,0.00031396,4]
[328460194,1717417836957,-500.0,0.00031396,4]
[328460195,1717417836966,-500.0,0.00031396,4]
[328460196,1717417836975,-515.96891431,0.00031396,4]
[328460197,1717417836985,-500.0,0.00031396,4]
[328460198,1717417836994,-500.0,0.00031396,4]
[328460199,1717417837004,-500.0,0.00031396,4]
[328460200,1717417837013,-500.0,0.00031396,4]
[328460201,1717417837022,-505.68265614,0.00031396,4]
[328460202,1717417837032,-500.0,0.00031396,4]
[328460203,1717417837041,-507.4498086,0.00031396,4]
[328460204,1717417837050,-500.0,0.00031396,4]
[328460205,1717417837060,-509.42058012,0.00031396,4]
[328460206,1717417837070,-500.0,0.00031396,4]
[328460207,1717417837080,-500.0,0.00031396,4]
[328460208,1717417837089,-414.16531989,0.00031396,4]
[328460209,1717417837108,-88.62348594,0.00031396,4]
[328460210,1717417837117,-252.85739783,0.00031396,4]
[328460211,1717417837129,-247.14260217,0.00031396,4]
[328460212,1717417837139,-506.41207656,0.00031396,4]
[328460213,1717417837149,-731.64,0.00031396,4]
[328460214,1717417837159,-500.0,0.00031396,4]
[328460215,1717417837169,-500.0,0.00031396,4]
[328460216,1717417837178,-437.9322308,0.00031396,4]
[328460217,1717417837188,-500.0,0.00031396,4]
[328460218,1717417837197,-885.89,0.00031396,4]
[328460219,1717417837207,-503.90276773,0.00031396,4]
[328460220,1717417837217,-500.0,0.00031396,4]
[328460221,1717417837227,-509.87199681,0.00031396,4]
[328460222,1717417837236,-500.0,0.00031396,4]
[328460223,1717417837245,-505.67259795,0.00031396,4]
[328460224,1717417837256,-500.0,0.00031396,4]
[328460225,1717417837266,-500.0,0.00031396,4]
[328460226,1717417837275,-500.0,0.00031396,4]
[328460227,1717417837285,-535.0,0.00031396,4]
[328460228,1717417837295,-500.0,0.00031396,4]
[328460229,1717417837304,-500.0,0.00031396,4]
[328460230,1717417837313,-378.82529097,0.00031396,4]
[328460231,1717417837353,-125.74715319,0.00031396,4]
[328460232,1717417837363,-500.0,0.00031396,4]
[328460233,1717417837372,-551.75316245,0.00031396,4]
[328460234,1717417837381,-113.4027777,0.00031396,4]
[328460239,1717417838154,-369.90456315,0.00031244,15]
[328460242,1717417838165,-347.215,0.00031244,15]
[328460246,1717417838240,-468.50164004,0.00031244,15]
[328460247,1717417838252,-1093.39984685,0.00031244,15]
[328460248,1717417838264,-2473.81855127,0.00031244,15]
[328460249,1717417838275,-479.24999973,0.00031244,15]
[328460250,1717417838287,-994.53623725,0.00031244,15]
[328460251,1717417838299,-186.33299064,0.00031244,15]
[328460252,1717417838308,-438.3972223,0.00031396,4]
[328460253,1717417838317,-506.86090535,0.00031396,4]
[328460254,1717417838326,-500.0,0.00031396,4]
[328460255,1717417838335,-500.0,0.00031396,4]
[328460256,1717417838344,-564.61731971,0.00031396,4]
[328460257,1717417838353,-500.0,0.00031396,4]
[328460258,1717417838362,-500.0,0.00031396,4]
[328460259,1717417838371,-500.0,0.00031396,4]
[328460260,1717417838381,-500.0,0.00031396,4]
[328460261,1717417838390,-500.0,0.00031396,4]
[328460262,1717417838398,-500.0,0.00031396,4]
[328460263,1717417838412,-500.0,0.00031396,4]
[328460264,1717417838421,-500.0,0.00031396,4]
[328460265,1717417838430,-500.0,0.00031396,4]
[328460266,1717417838439,-500.0,0.00031396,4]
[328460267,1717417838448,-500.0,0.00031396,4]
[328460268,1717417838458,-500.0,0.00031396,4]
[328460269,1717417838467,-500.0,0.00031396,4]
[328460270,1717417838476,-505.98895991,0.00031396,4]
[328460271,1717417838485,-500.0,0.00031396,4]
[328460272,1717417838495,-505.57148261,0.00031396,4]
[328460273,1717417838505,-500.0,0.00031396,4]
[328460274,1717417838514,-517.69226353,0.00031396,4]
[328460275,1717417838523,-500.0,0.00031396,4]
[328460276,1717417838537,-511.43762641,0.00031396,4]
[328460277,1717417838546,-503.0464294,0.00031396,4]
[328460278,1717417838556,-500.0,0.00031396,4]
[328460279,1717417838565,-505.5485087,0.00031396,4]
[328460280,1717417838575,-500.0,0.00031396,4]
[328460281,1717417838585,-546.10588819,0.00031396,4]
[328460282,1717417838594,-500.0,0.00031396,4]
[328460283,1717417838602,-513.16997157,0.00031396,4]
[328460284,1717417838612,-500.0,0.00031396,4]
[328460285,1717417838622,-500.0,0.00031396,4]
[328460286,1717417838631,-509.58804363,0.00031396,4]
[328460287,1717417838640,-513.53325222,0.00031396,4]
[328460288,1717417838649,-500.0,0.00031396,4]
[328460289,1717417838659,-500.0,0.00031396,4]
[328460290,1717417838668,-589.0448513,0.00031396,4]
[328460291,1717417838678,-500.0,0.00031396,4]
[328460292,1717417838686,-507.34242009,0.00031396,4]
[328460293,1717417838695,-500.0,0.00031396,4]
[328460294,1717417838705,-500.0,0.00031396,4]
[328460295,1717417838714,-500.0,0.00031396,4]
[328460296,1717417838723,-500.0,0.00031396,4]
[328460297,1717417838732,-500.0,0.00031396,4]
[328460298,1717417838742,-500.0,0.00031396,4]
[328460299,1717417838752,-500.0,0.00031396,4]
[328460300,1717417838761,-500.0,0.00031396,4]
[328460301,1717417838770,-500.0,0.00031396,4]
[328460302,1717417838779,-500.0,0.00031396,4]
[328460303,1717417838788,-500.0,0.00031396,4]
[328460304,1717417838797,-500.0,0.00031396,4]
[328460305,1717417838806,-500.0,0.00031396,4]
[328460306,1717417838815,-500.0,0.00031396,4]
[328460307,1717417838824,-500.0,0.00031396,4]
[328460309,1717417838833,-503.70501943,0.00031396,4]
[328460311,1717417838842,-500.0,0.00031396,4]
[328460312,1717417838851,-528.22381285,0.00031396,4]
[328460314,1717417838860,-321.56538376,0.00031396,4]
[328460316,1717417838869,-510.90387728,0.00031396,4]
[328460318,1717417838878,-200.0001764,0.00031396,4]
[328460320,1717417838887,-528.83305396,0.00031396,4]
[328460321,1717417838897,-500.0,0.00031396,4]
[328460322,1717417838916,-500.0,0.00031396,4]
[328460323,1717417838928,-500.0,0.00031396,4]
[328460324,1717417838938,-500.0,0.00031396,4]
[328460325,1717417838948,-500.0,0.00031396,4]
[328460326,1717417838958,-500.0,0.00031396,4]
[328460327,1717417838967,-500.0,0.00031396,4]
[328460328,1717417838977,-510.97526948,0.00031396,4]
[328460329,1717417838989,-509.28604318,0.00031396,4]
[328460330,1717417838999,-510.89176912,0.00031396,4]
[328460331,1717417839009,-546.02581782,0.00031396,4]
[328460332,1717417839018,-500.0,0.00031396,4]
[328460333,1717417839028,-500.0,0.00031396,4]
[328460334,1717417839038,-500.0,0.00031396,4]
[328460335,1717417839048,-500.0,0.00031396,4]
[328460336,1717417839058,-513.85043149,0.00031396,4]
[328460337,1717417839068,-500.0,0.00031396,4]
[328460338,1717417839079,-500.0,0.00031396,4]
[328460339,1717417839262,-514.93660661,0.00031396,4]
[328460340,1717417839272,-382.52469176,0.00031396,4]
[328460341,1717417839282,-187.93026553,0.00031396,4]
[328460342,1717417839292,-547.51901265,0.00031396,4]
[328460343,1717417839301,-513.34,0.00031396,4]
[328460344,1717417839311,-513.63336692,0.00031396,4]
[328460345,1717417839320,-500.0,0.00031396,4]
[328460346,1717417839330,-503.73,0.00031396,4]
[328460347,1717417839339,-507.19325019,0.00031396,4]
[328460348,1717417839348,-508.53321537,0.00031396,4]
[328460349,1717417839358,-500.0,0.00031396,4]
[328460350,1717417839367,-514.48343777,0.00031396,4]
[328460351,1717417839377,-500.0,0.00031396,4]
[328460352,1717417839386,-500.0,0.00031396,4]
[328460353,1717417839396,-500.0,0.00031396,4]
[328460354,1717417839405,-500.0,0.00031396,4]
[328460355,1717417839415,-500.0,0.00031397,4]
[328460356,1717417839424,-500.0,0.00031397,4]
[328460357,1717417839434,-500.0,0.00031397,4]
[328460358,1717417839443,-500.0,0.00031397,4]
[328460359,1717417839452,-500.0,0.00031397,4]
[328460360,1717417839461,-500.0,0.00031397,4]
[328460361,1717417839471,-500.0,0.00031397,4]
[328460362,1717417839484,-500.0,0.00031397,4]
[328460363,1717417839493,-500.0,0.00031397,4]
[328460364,1717417839504,-500.0,0.00031397,4]
[328460365,1717417839513,-500.0,0.00031397,4]
[328460366,1717417839523,-500.0,0.00031397,4]
[328460367,1717417839532,-500.0,0.00031397,4]
[328460368,1717417839542,-500.0,0.00031397,4]
[328460369,1717417839551,-500.0,0.00031397,4]
[328460370,1717417839561,-500.0,0.00031397,4]
[328460371,1717417839570,-500.0,0.00031397,4]
[328460372,1717417839580,-653.5,0.00031397,4]
[328460373,1717417839589,-500.0,0.00031397,4]
[328460374,1717417839598,-500.0,0.00031397,4]
[328460375,1717417839608,-623.08,0.00031397,4]
[328460376,1717417839618,-500.0,0.00031397,4]
[328460377,1717417839628,-504.08945764,0.00031399,4]
[328460378,1717417839638,-500.0,0.00031399,4]
[328460379,1717417839647,-500.0,0.00031399,4]
[328460380,1717417839657,-500.0,0.00031399,4]
[328460381,1717417839667,-500.0,0.00031399,4]
[328460382,1717417839676,-530.20159412,0.00031399,4]
[328460383,1717417839686,-514.18049709,0.00031399,4]
[328460384,1717417839696,-279.90326375,0.00031399,4]
[328460385,1717417839706,-500.0,0.00031399,4]
[328460386,1717417839715,-500.0,0.00031399,4]
[328460387,1717417839725,-233.69212997,0.00031399,4]
[328460388,1717417839734,-500.0,0.00031399,4]
[328460389,1717417839744,-552.55191018,0.00031399,4]
[328460390,1717417839755,-500.0,0.00031399,4]
[328460391,1717417839765,-500.0,0.00031399,4]
[328460392,1717417839775,-500.0,0.00031399,4]
[328460393,1717417839784,-510.50921693,0.00031399,4]
[328460394,1717417839794,-510.90101307,0.00031399,4]
[328460395,1717417839805,-500.0,0.00031399,4]
[328460396,1717417839815,-500.0,0.00031399,4]
[328460397,1717417839824,-510.66281553,0.00031399,4]
[328460398,1717417839834,-513.17070184,0.00031399,4]
[328460399,1717417839844,-500.0,0.00031399,4]
[328460400,1717417839853,-500.0,0.00031399,4]
[328460401,1717417839863,-500.0,0.00031399,4]
[328460402,1717417839873,-500.0,0.00031399,4]
[328460403,1717417839882,-500.0,0.00031399,4]
[328460404,1717417839892,-500.0,0.00031399,4]
[328460405,1717417839902,-500.0,0.00031399,4]
[328460406,1717417839914,-513.77976397,0.00031399,4]
[328460407,1717417839926,-500.0,0.00031399,4]
[328460408,1717417839938,-531.87211391,0.00031399,4]
[328460409,1717417839949,-509.17640758,0.00031399,4]
[328460410,1717417839961,-500.0,0.00031399,4]
[328460411,1717417839971,-500.0,0.00031399,4]
[328460412,1717417839981,-505.94522343,0.00031399,4]
[328460413,1717417839991,-500.0,0.00031399,4]
[328460414,1717417840004,-617.58622161,0.00031399,4]
[328460415,1717417840014,-500.0,0.00031399,4]
[328460416,1717417840023,-500.0,0.00031399,4]
[328460417,1717417840033,-512.05913474,0.00031399,4]
[328460418,1717417840044,-506.9071427,0.00031399,4]
[328460419,1717417840054,-500.0,0.00031399,4]
[328460420,1717417840064,-342.66,0.00031403,2]
[328460421,1717417840074,-697.67847289,0.0003147,2]
[328460422,1717417840084,-500.0,0.00031472,4]
[328460423,1717417840094,-500.0,0.00031472,4]
[328460424,1717417840104,-500.0,0.00031473,4]
[328460425,1717417840114,-500.0,0.00031473,4]
[328460426,1717417840125,-500.0,0.00031473,4]
[328460427,1717417840135,-555.00264691,0.00031473,4]
[328460428,1717417840145,-500.0,0.00031473,4]
[328460429,1717417840156,-500.0,0.00031473,4]
[328460430,1717417840166,-500.0,0.00031473,4]
[328460431,1717417840176,-500.0,0.00031473,4]
[328460432,1717417840186,-500.0,0.00031473,4]
[328460433,1717417840195,-500.0,0.00031473,4]
[328460434,1717417840205,-500.0,0.00031473,4]
[328460435,1717417840214,-500.0,0.00031473,4]
[328460436,1717417840224,-500.0,0.00031473,4]
[328460437,1717417840234,-500.0,0.00031473,4]
[328460438,1717417840244,-500.0,0.00031473,4]
[328460439,1717417840255,-742.85,0.00031473,4]
[328460440,1717417840264,-500.0,0.00031473,4]
[328460441,1717417840274,-500.0,0.00031473,4]
[328460442,1717417840284,-500.0,0.00031473,4]
[328460443,1717417840294,-500.0,0.00031473,4]
[328460444,1717417840303,-500.0,0.00031473,4]
[328460445,1717417840313,-278.71912147,0.00031473,4]
[328460446,1717417840324,-500.0,0.00031473,4]
[328460447,1717417840335,-736.69,0.00031473,4]
[328460448,1717417840346,-500.0,0.00031473,4]
[328460449,1717417840356,-500.0,0.00031473,4]
[328460450,1717417840367,-500.0,0.00031473,4]
[328460451,1717417840378,-500.0,0.00031473,4]
[328460452,1717417840389,-500.0,0.00031473,4]
[328460453,1717417840400,-575.69,0.00031473,4]
[328460454,1717417840411,-500.0,0.00031473,4]
[328460455,1717417840421,-1000.0,0.00031473,4]
[328460456,1717417840431,-500.0,0.00031473,4]
[328460457,1717417840441,-500.0,0.00031473,4]
[328460458,1717417840451,-500.0,0.00031473,4]
[328460459,1717417840461,-500.0,0.00031473,4]
[328460460,1717417840471,-1498.58,0.00031473,4]
[328460461,1717417840481,-500.0,0.00031473,4]
[328460462,1717417840491,-614.08,0.00031473,4]
[328460463,1717417840500,-500.0,0.00031473,4]
[328460464,1717417840510,-500.0,0.00031473,4]
[328460465,1717417840521,-500.0,0.00031473,4]
[328460466,1717417840530,-408.56,0.00031473,4]
[328460467,1717417840540,-500.0,0.00031473,4]
[328460468,1717417840550,-367.34,0.00031473,4]
[328460469,1717417840559,-500.0,0.00031473,4]
[328460470,1717417840569,-2143.67,0.00031473,4]
[328460471,1717417840579,-1169.1,0.00031473,4]
[328460472,1717417840589,-578.49,0.00031473,4]
[328460473,1717417840599,-500.0,0.00031473,4]
[328460474,1717417840608,-500.0,0.00031473,4]
[328460475,1717417840618,-500.0,0.00031473,4]
[328460476,1717417840628,-500.0,0.00031473,4]
[328460477,1717417840637,-500.0,0.00031473,4]
[328460478,1717417840647,-500.0,0.00031473,4]
[328460479,1717417840656,-500.0,0.00031473,4]
[328460480,1717417840666,-660.4,0.00031473,4]
[328460481,1717417840676,-500.0,0.00031473,4]
[328460482,1717417840687,-242.0,0.00031473,4]
[328460483,1717417840696,-500.0,0.00031473,4]
[328460484,1717417840706,-527.09823549,0.00031473,4]
[328460485,1717417840716,-500.0,0.00031473,4]
[328460486,1717417840725,-500.0,0.00031473,4]
[328460487,1717417840735,-500.0,0.00031473,4]
[328460489,1717417840746,-500.0,0.00031473,4]
[328460491,1717417840755,-500.0,0.00031473,4]
[328460493,1717417840765,-500.0,0.00031473,4]
[328460494,1717417840775,-500.0,0.00031473,4]
[328460495,1717417840784,-1969.3,0.00031473,4]
[328460496,1717417840794,-7968.28,0.00031473,4]
[328460497,1717417840803,-618.93,0.00031473,4]
[328460498,1717417840823,-500.0,0.00031473,4]
[328460499,1717417840837,-500.0,0.00031473,4]
[328460500,1717417840847,-500.0,0.00031473,4]
[328460501,1717417840858,-500.0,0.00031473,4]
[328460502,1717417840869,-500.0,0.00031473,4]
[328460503,1717417840879,-411.24010273,0.00031473,4]
[328460504,1717417840889,-500.0,0.00031473,4]
[328460505,1717417840900,-500.0,0.00031473,4]
[328460506,1717417840913,-500.0,0.00031473,4]
[328460507,1717417840923,-1008.14,0.000315,2]
[328460508,1717417840933,-302.62,0.000315,2]
[328460509,1717417840943,-450.88413708,0.00031507,2]
[328460510,1717417840953,-234.53919679,0.00031571,4]
[328460511,1717417840963,-1299.42409849,0.00031633,4]
[328460512,1717417840974,-500.0,0.0003167,4]
[328460513,1717417840985,-500.0,0.0003167,4]
[328460514,1717417840996,-508.20525946,0.0003167,4]
[328460515,1717417841007,-500.0,0.0003167,4]
[328460516,1717417841016,-500.0,0.0003167,4]
[328460517,1717417841025,-500.0,0.0003167,4]
[328460518,1717417841035,-500.0,0.0003167,4]
[328460519,1717417841045,-500.0,0.0003167,4]
[328460520,1717417841054,-500.0,0.0003167,4]
[328460521,1717417841064,-500.0,0.0003167,4]
[328460522,1717417841073,-500.0,0.0003167,4]
[328460523,1717417841083,-544.37076063,0.0003167,4]
[328460524,1717417841093,-158.46,0.0003167,4]
[328460525,1717417841102,-500.0,0.0003167,4]
[328460526,1717417841112,-558.75,0.0003167,4]
[328460527,1717417841121,-500.0,0.0003167,4]
[328460528,1717417841131,-574.95,0.0003167,4]
[328460529,1717417841140,-500.0,0.0003167,4]
[328460530,1717417841150,-511.56554265,0.0003167,4]
[328460531,1717417841160,-500.0,0.0003167,4]
[328460532,1717417841170,-500.0,0.0003167,4]
[328460533,1717417841179,-500.0,0.0003167,4]
[328460534,1717417841189,-305.64695598,0.0003167,4]
[328460535,1717417841199,-500.0,0.0003167,4]
[328460536,1717417841208,-500.0,0.0003167,4]
[328460537,1717417841218,-500.0,0.0003167,4]
[328460538,1717417841228,-525.13,0.0003167,4]
[328460539,1717417841238,-500.0,0.0003167,4]
[328460540,1717417841247,-500.0,0.0003167,4]
[328460541,1717417841258,-500.0,0.0003167,4]
[328460542,1717417841267,-572.89,0.0003167,4]
[328460543,1717417841276,-500.0,0.0003167,4]
[328460544,1717417841286,-500.0,0.0003167,4]
[328460545,1717417841296,-500.0,0.0003167,4]
[328460546,1717417841305,-500.0,0.0003167,4]
[328460547,1717417841315,-564.9,0.0003167,4]
[328460548,1717417841324,-500.0,0.0003167,4]
[328460549,1717417841335,-500.0,0.0003167,4]
[328460550,1717417841344,-500.0,0.0003167,4]
[328460551,1717417841354,-733.0,0.0003167,4]
[328460552,1717417841364,-500.0,0.0003167,4]
[328460553,1717417841373,-500.0,0.0003167,4]
[328460554,1717417841383,-500.0,0.0003167,4]
[328460555,1717417841392,-500.0,0.0003167,4]
[328460556,1717417841402,-500.0,0.0003167,4]
[328460557,1717417841412,-670.9,0.0003167,4]
[328460558,1717417841422,-500.0,0.0003167,4]
[328460559,1717417841431,-500.0,0.0003167,4]
[328460560,1717417841441,-562.69,0.0003167,4]
[328460561,1717417841450,-500.0,0.0003167,4]
[328460562,1717417841461,-500.0,0.0003167,4]
[328460563,1717417841470,-500.0,0.0003167,4]
[328460564,1717417841480,-500.0,0.0003167,4]
[328460565,1717417841489,-500.0,0.0003167,4]
[328460566,1717417841499,-523.18384278,0.0003167,4]
[328460567,1717417841509,-492.51246279,0.0003167,4]
[328460568,1717417841519,-510.85991168,0.0003167,4]
[328460569,1717417841528,-500.0,0.0003167,4]
[328460570,1717417841537,-731.64,0.0003167,4]
[328460571,1717417841548,-508.54599495,0.0003167,4]
[328460572,1717417841557,-500.0,0.0003167,4]
[328460573,1717417841567,-533.67844625,0.0003167,4]
[328460574,1717417841577,-885.89,0.0003167,4]
[328460575,1717417841586,-500.0,0.0003167,4]
[328460576,1717417841596,-516.35573114,0.0003167,4]
[328460577,1717417841606,-540.60932175,0.0003167,4]
[328460578,1717417841615,-631.10415879,0.0003167,4]
[328460579,1717417841624,-500.0,0.0003167,4]
[328460580,1717417841634,-530.07558012,0.0003167,4]
[328460581,1717417841644,-500.0,0.0003167,4]
[328460582,1717417841653,-500.0,0.0003167,4]
[328460583,1717417841662,-551.8,0.0003167,4]
[328460584,1717417841671,-500.0,0.0003167,4]
[328460585,1717417841681,-500.0,0.0003167,4]
[328460586,1717417841691,-500.0,0.0003167,4]
[328460588,1717417841702,-525.75269474,0.0003167,4]
[328460590,1717417841712,-500.0,0.0003167,4]
[328460592,1717417841721,-500.0,0.0003167,4]
[328460593,1717417841731,-500.0,0.0003167,4]
[328460595,1717417841741,-500.0,0.0003167,4]
[328460598,1717417841751,-500.0,0.0003167,4]
[328460599,1717417841763,-500.0,0.0003167,4]
[328460600,1717417841773,-500.0,0.0003167,4]
[328460601,1717417841782,-500.0,0.0003167,4]
[328460602,1717417841791,-502.06472547,0.0003167,4]
[328460603,1717417841800,-500.0,0.0003167,4]
[328460604,1717417841810,-500.0,0.0003167,4]
[328460605,1717417841820,-500.0,0.0003167,4]
[328460613,1717417841971,-500.0,0.0003167,4]
[328460614,1717417841981,-500.0,0.0003167,4]
[328460615,1717417841992,-500.0,0.0003167,4]
[328460616,1717417842003,-500.0,0.0003167,4]
[328460617,1717417842013,-507.23623488,0.0003167,4]
[328460618,1717417842024,-518.6977587,0.0003167,4]
[328460619,1717417842033,-500.0,0.0003167,4]
[328460620,1717417842043,-500.0,0.0003167,4]
[328460621,1717417842053,-500.0,0.0003167,4]
[328460622,1717417842062,-515.37737712,0.0003167,4]
[328460623,1717417842072,-500.0,0.0003167,4]
[328460624,1717417842081,-500.0,0.0003167,4]
[328460625,1717417842091,-500.0,0.0003167,4]
[328460626,1717417842101,-500.0,0.0003167,4]
[328460627,1717417842110,-500.0,0.0003167,4]
[328460628,1717417842120,-500.0,0.0003167,4]
[328460629,1717417842131,-526.14829605,0.0003167,4]
[328460630,1717417842140,-500.0,0.0003167,4]
[328460631,1717417842149,-500.0,0.0003167,4]
[328460632,1717417842159,-509.16866402,0.0003167,4]
[328460633,1717417842168,-500.0,0.0003167,4]
[328460634,1717417842178,-500.0,0.0003167,4]
[328460635,1717417842188,-521.79125983,0.0003167,4]
[328460636,1717417842197,-516.25845754,0.0003167,4]
[328460637,1717417842207,-514.8992008,0.0003167,4]
[328460638,1717417842217,-509.38519895,0.0003167,4]
[328460639,1717417842227,-500.0,0.0003167,4]
[328460640,1717417842236,-500.0,0.0003167,4]
[328460641,1717417842246,-416.52338285,0.0003167,4]
[328460642,1717417842256,-401.38,0.0003167,4]
[328460643,1717417842266,-188.03,0.0003167,4]
[328460644,1717417842275,-500.0,0.0003167,4]
[328460645,1717417842284,-168.7,0.0003167,4]
[328460646,1717417842294,-500.0,0.00031671,4]
[328460647,1717417842304,-518.26383622,0.00031671,4]
[328460648,1717417842314,-500.0,0.00031671,4]
[328460649,1717417842323,-500.0,0.00031671,4]
[328460650,1717417842332,-538.19,0.00031671,4]
[328460651,1717417842342,-500.0,0.00031671,4]
[328460652,1717417842353,-443.26,0.00031671,4]
[328460653,1717417842362,-653.5,0.00031671,4]
[328460654,1717417842372,-623.08,0.00031671,4]
[328460655,1717417842382,-500.0,0.00031671,4]
[328460656,1717417842392,-236.36,0.00031673,4]
[328460657,1717417842402,-270.78,0.00031673,4]
[328460658,1717417842412,-500.0,0.00031673,4]
[328460659,1717417842422,-500.0,0.00031673,4]
[328460660,1717417842431,-500.0,0.00031673,4]
[328460661,1717417842441,-500.0,0.00031673,4]
[328460662,1717417842450,-500.0,0.00031673,4]
[328460663,1717417842459,-500.0,0.00031673,4]
[328460664,1717417842470,-516.20203867,0.00031673,4]
[328460665,1717417842480,-500.0,0.00031673,4]
[328460666,1717417842489,-500.0,0.00031673,4]
[328460667,1717417842499,-155.23468504,0.00031693,7]
[328460668,1717417842510,-152.63995083,0.00031698,7]
[328460669,1717417842519,-150.03176387,0.00031733,15]
[328460670,1717417842528,-500.0,0.00031746,4]